Workbook

Sheet Project Information
C1: Project Title:
C2: Research Content: | F2: Non UNSW Markup | G2: 0.1 | H2: UNSW Indirect Markup | I2: 0.35
C3: RG Number: | F3: WRL Project Number: | G3: WRL2018xxx
C4: Start Date: | E4: Select the pricing timeframe | H4: 2019-01-01 | I4: Note: Select Pricing Period
C5: End Date:
C6: Client:
C7: WRL Contact Name: | D7: Smith, Grantley
C8: WRL Contact phone: | D8: =IF(D7="","",VLOOKUP(D7,StaffDetails!A:N,13,FALSE)) -> 80719862 | F8: Email | G8: =IF(D7="","",VLOOKUP(D7,StaffDetails!A:N,14,FALSE)) -> G.Smith@wrl.unsw.edu.au
C9: WRL Contact email: | D9: b.miller@wrl.unsw.edu.au
E11: WRL Project Pricing Tool
C12: Markup Factor | D12: 1 | E12: 1 | F12: 1 | G12: 1 | H12: 1 | I12: 1 | J12: 1
D14: =IF(D12<1,1*(IF(D13="",0,INDEX(StaffDetails!$D$3:$D$1048576,MATCH(D13,StaffDetails!$A$3:$A$1048576,FALSE)))),D12*(IF(D13="",0,INDEX(StaffDetails!$D$3:$D$1048576,MATCH(D13,StaffDetails!$A$3:$A$1048576,FALSE))))) -> 0 | E14: =IF(E12<1,1*(IF(E13="",0,INDEX(StaffDetails!$D$3:$D$1048576,MATCH(E13,StaffDetails!$A$3:$A$1048576,FALSE)))),E12*(IF(E13="",0,INDEX(StaffDetails!$D$3:$D$1048576,MATCH(E13,StaffDetails!$A$3:$A$1048576,FALSE))))) -> 0 | F14: =IF(F12<1,1*(IF(F13="",0,INDEX(StaffDetails!$D$3:$D$1048576,MATCH(F13,StaffDetails!$A$3:$A$1048576,FALSE)))),F12*(IF(F13="",0,INDEX(StaffDetails!$D$3:$D$1048576,MATCH(F13,StaffDetails!$A$3:$A$1048576,FALSE))))) -> 0 | G14: =IF(G12<1,1*(IF(G13="",0,INDEX(StaffDetails!$D$3:$D$1048576,MATCH(G13,StaffDetails!$A$3:$A$1048576,FALSE)))),G12*(IF(G13="",0,INDEX(StaffDetails!$D$3:$D$1048576,MATCH(G13,StaffDetails!$A$3:$A$1048576,FALSE))))) -> 0 | H14: =IF(H12<1,1*(IF(H13="",0,INDEX(StaffDetails!$D$3:$D$1048576,MATCH(H13,StaffDetails!$A$3:$A$1048576,FALSE)))),H12*(IF(H13="",0,INDEX(StaffDetails!$D$3:$D$1048576,MATCH(H13,StaffDetails!$A$3:$A$1048576,FALSE))))) -> 0 | I14: =IF(I12<1,1*(IF(I13="",0,INDEX(StaffDetails!$D$3:$D$1048576,MATCH(I13,StaffDetails!$A$3:$A$1048576,FALSE)))),I12*(IF(I13="",0,INDEX(StaffDetails!$D$3:$D$1048576,MATCH(I13,StaffDetails!$A$3:$A$1048576,FALSE))))) -> 0 | J14: =IF(J12<1,1*(IF(J13="",0,INDEX(StaffDetails!$D$3:$D$1048576,MATCH(J13,StaffDetails!$A$3:$A$1048576,FALSE)))),J12*(IF(J13="",0,INDEX(StaffDetails!$D$3:$D$1048576,MATCH(J13,StaffDetails!$A$3:$A$1048576,FALSE))))) -> 0
C16: Total | D16: =IF(D13="","",SUM(D20:D69)) -> 
C17: Effective Days worked (1 Day = 7hrs) | D17: =IF(D16="","",IF(D16>0,D16/7,"")) ->  | E17: =IF(E16="","",IF(E16>0,E16/7,"")) ->  | G17: =IF(G16="","",IF(G16>0,G16/7,"")) -> 
B19: Activity | C19: Description | D19: =D13&" Hrs" -> Hrs | E19: =E13&" Hrs" -> Hrs | F19: =F13&" Hrs" -> Hrs | G19: =G13&" Hrs" -> Hrs | H19: Hrs | I19: Hrs | J19: Hrs | L19: Revenue A$
B20: 1 | L20: =SUMPRODUCT($D$14:$J$14,D20:J20) -> 0
B21: 2 | L21: =SUMPRODUCT($D$14:$J$14,D21:J21) -> 0
B22: 3 | L22: 0
B23: 4 | L23: 0
B24: 5 | L24: 0
B25: 6 | L25: 0
B26: 7 | L26: 0
B27: 8 | L27: 0
B28: 9 | L28: 0
B29: 10 | L29: 0
B30: 11 | L30: 0
B31: 12 | L31: 0
B32: 13 | L32: 0
B33: 14 | L33: 0
B34: 15 | L34: 0
B35: 16 | L35: 0
B36: 17 | L36: 0
B37: 18 | L37: 0
B38: 19 | L38: 0
B39: 20 | L39: 0
B40: 21 | L40: 0
B41: 22 | L41: 0
B42: 23 | L42: 0
B43: 24 | L43: 0
B44: 25 | L44: 0
B45: 26 | L45: 0
B46: 27 | L46: 0
B47: 28 | L47: 0
B48: 29 | L48: 0
B49: 30 | L49: 0
B50: 31 | L50: 0
B51: 32 | L51: 0
B52: 33 | L52: 0
B53: 34 | L53: =SUMPRODUCT($D$14:$J$14,D53:J53) -> 0
B54: 35 | L54: 0
B55: 36 | L55: 0
B56: 37 | L56: 0
B57: 38 | L57: 0
B58: 39 | L58: 0
B59: 40 | L59: 0
B60: 41 | L60: 0
B61: 42 | L61: 0
B62: 43 | L62: 0
B63: 44 | L63: 0
B64: 45 | L64: 0
B65: 46 | L65: =SUMPRODUCT($D$14:$J$14,D65:J65) -> 0
B66: 47 | L66: 0
B67: 48 | L67: 0
B68: 49 | L68: 0
B69: 50 | L69: 0
C70: Description | D70: SUBCONSULTANTS | J70: WRL Mark up (optional) | K70: Lump Sump Cost
L71: =K71+K71*J71+K71*$G$2 -> 0
L72: =K72+K72*J72+K72*$G$2 -> 0
L73: =K73+K73*J73+K73*$G$2 -> 0
L74: 0
L75: =K75+K75*J75+K75*$G$2 -> 0
D76: EXPENSES | J76: WRL Mark up (optional) | K76: Lump Sump Cost
C77: Item | D77: Description
L78: =K78+K78*J78+K78*$G$2 -> 0
L79: =K79+K79*J79+K79*$G$2 -> 0
L80: 0
L81: 0
L82: 0
L83: 0
L84: 0
L85: 0
L86: 0
L87: 0
L88: 0
L89: 0
L90: 0
L91: 0
L92: 0
D96: =IF(D13="","",D13) ->  | L96: AUD
C97: Total Revenue $ | D97: =IF(D96="","",D16*D14) ->  | L97: =SUM(D97:K97) -> 0
C98: Total Expenses | L98: =SUM(L71:L75,L78:L92) -> 0
C99: Grand Total Excluding GST | L99: =SUM(L20:L92) -> 0
C100: Grand Total Including GST | L100: =L99*1.1 -> 0

Sheet StaffDetails
A1: Source: Rates Updated from UNSW HR Website 5/12/2018 - https://www.hr.unsw.edu.au/services/salaries | J1: ='Project Information'!H4 -> 2019-01-01
A2: Name | B2: Salary Level | C2: Superannuation Rate | D2: 2019 Chargeout | E2: Adjusted Charge Out - (Where Applicable) | G2: Classification | H2: Level | I2: Step | J2: Daily Rate (base salary and loadings) | K2: Daily Rate to sponsor (incl all costs) | M2: Phone | N2: Email
A4: Anderson, Douglas | B4: General Staff 8 5 | C4: 0.17 | D4: 220 | E4: =IF(ISNA(HLOOKUP([1]StaffDetails!A4,'[1]Project Information'!$D$13:$J$14,2,FALSE)),D4,(HLOOKUP([1]StaffDetails!A4,'[1]Project Information'!$D$13:$J$14,2,FALSE))) -> 220 | G4: General Staff | H4: =IF(LEFT(B4,1)="G", IF(RIGHT(B4,1)="n",MID(B4,15,3),MID(B4,15,1)),MID(B4,16,1)) -> 8 | I4: =IF(LEFT(B4,1)="G", IF(RIGHT(B4,1)="n",RIGHT(B4,3),RIGHT(B4,1)),RIGHT(B4,1)) -> 5 | J4: =VLOOKUP(B4,'[1]Salary Information'!$A:$L,MATCH($J$1,'[1]Salary Information'!$A$1:$L$1,0),FALSE) -> 484.8104839 | K4: =E4*7 -> 1540 | M4: 80719848 | N4: d.anderson@wrl.unsw.edu.au
A5: Blacka, Anna | B5: General Staff 4 3 | C5: 0.17 | D5: 125 | E5: =IF(ISNA(HLOOKUP([1]StaffDetails!A5,'[1]Project Information'!$D$13:$J$14,2,FALSE)),D5,(HLOOKUP([1]StaffDetails!A5,'[1]Project Information'!$D$13:$J$14,2,FALSE))) -> 125 | G5: General Staff | H5: =IF(LEFT(B5,1)="G", IF(RIGHT(B5,1)="n",MID(B5,15,3),MID(B5,15,1)),MID(B5,16,1)) -> 4 | I5: =IF(LEFT(B5,1)="G", IF(RIGHT(B5,1)="n",RIGHT(B5,3),RIGHT(B5,1)),RIGHT(B5,1)) -> 3 | J5: =VLOOKUP(B5,'[1]Salary Information'!$A:$L,MATCH($J$1,'[1]Salary Information'!$A$1:$L$1,0),FALSE) -> 289.891129 | K5: 875 | M5: 80719837 | N5: a.blacka@wrl.unsw.edu.au
A6: Blacka, Matthew | B6: General Staff 8 5 | C6: 0.17 | D6: 220 | E6: =IF(ISNA(HLOOKUP([1]StaffDetails!A6,'[1]Project Information'!$D$13:$J$14,2,FALSE)),D6,(HLOOKUP([1]StaffDetails!A6,'[1]Project Information'!$D$13:$J$14,2,FALSE))) -> 220 | G6: General Staff | H6: 8 | I6: 5 | J6: =VLOOKUP(B6,'[1]Salary Information'!$A:$L,MATCH($J$1,'[1]Salary Information'!$A$1:$L$1,0),FALSE) -> 484.8104839 | K6: 1540 | M6: 80719837 | N6: m.blacka@wrl.unsw.edu.au
A7: Carley, James | B7: Academic Staff C 6 | C7: 0.17 | D7: 260 | E7: =IF(ISNA(HLOOKUP([1]StaffDetails!A7,'[1]Project Information'!$D$13:$J$14,2,FALSE)),D7,(HLOOKUP([1]StaffDetails!A7,'[1]Project Information'!$D$13:$J$14,2,FALSE))) -> 260 | G7: Academic Staff | H7: C | I7: 6 | J7: =VLOOKUP(B7,'[1]Salary Information'!$A:$L,MATCH($J$1,'[1]Salary Information'!$A$1:$L$1,0),FALSE) -> 602.3951613 | K7: 1820 | M7: 80719863 | N7: james.carley@unsw.edu.au
A8: Carlino, Grace | B8: General Staff 4 3 | C8: 0.17 | D8: 125 | E8: =IF(ISNA(HLOOKUP([1]StaffDetails!A8,'[1]Project Information'!$D$13:$J$14,2,FALSE)),D8,(HLOOKUP([1]StaffDetails!A8,'[1]Project Information'!$D$13:$J$14,2,FALSE))) -> 125 | G8: General Staff | H8: 4 | I8: 3 | J8: =VLOOKUP(B8,'[1]Salary Information'!$A:$L,MATCH($J$1,'[1]Salary Information'!$A$1:$L$1,0),FALSE) -> 289.891129 | K8: =E8*7 -> 875 | M8: 80719841 | N8: g.carlino@wrl.unsw.edu.au
A9: Coghlan, Ian | B9: General Staff 7 4 | C9: 0.17 | D9: 185 | E9: =IF(ISNA(HLOOKUP([1]StaffDetails!A9,'[1]Project Information'!$D$13:$J$14,2,FALSE)),D9,(HLOOKUP([1]StaffDetails!A9,'[1]Project Information'!$D$13:$J$14,2,FALSE))) -> 185 | G9: General Staff | H9: 7 | I9: 4 | J9: =VLOOKUP(B9,'[1]Salary Information'!$A:$L,MATCH($J$1,'[1]Salary Information'!$A$1:$L$1,0),FALSE) -> 416.6048387 | K9: 1295 | M9: 80719866 | N9: i.coghlan@wrl.unsw.edu.au
A10: Cox, Ron | B10: Academic Staff D 4 | C10: 0.17 | D10: 350 | E10: =IF(ISNA(HLOOKUP([1]StaffDetails!A10,'[1]Project Information'!$D$13:$J$14,2,FALSE)),D10,(HLOOKUP([1]StaffDetails!A10,'[1]Project Information'!$D$13:$J$14,2,FALSE))) -> 350 | G10: Academic Staff | H10: D | I10: 4 | J10: =VLOOKUP(B10,'[1]Salary Information'!$A:$L,MATCH($J$1,'[1]Salary Information'!$A$1:$L$1,0),FALSE) -> 690 | K10: 2450 | M10: 80719832 | N10: r.cox@unsw.edu.au
A11: Drummond, Chris | B11: General Staff 6 1 | C11: 0.17 | D11: 165 | E11: =IF(ISNA(HLOOKUP([1]StaffDetails!A11,'[1]Project Information'!$D$13:$J$14,2,FALSE)),D11,(HLOOKUP([1]StaffDetails!A11,'[1]Project Information'!$D$13:$J$14,2,FALSE))) -> 165 | G11: General Staff | H11: 6 | I11: 1 | J11: =VLOOKUP(B11,'[1]Salary Information'!$A:$L,MATCH($J$1,'[1]Salary Information'!$A$1:$L$1,0),FALSE) -> 350.9395161 | K11: 1155 | M11: 80719874 | N11: c.drummond@wrl.unsw.edu.au
A12: Deiber, Mathieu | B12: General Staff 6 1 | C12: 0.17 | D12: 155 | E12: =IF(ISNA(HLOOKUP([1]StaffDetails!A12,'[1]Project Information'!$D$13:$J$14,2,FALSE)),D12,(HLOOKUP([1]StaffDetails!A12,'[1]Project Information'!$D$13:$J$14,2,FALSE))) -> 155 | G12: General Staff | H12: 6 | I12: 1 | J12: =VLOOKUP(B12,'[1]Salary Information'!$A:$L,MATCH($J$1,'[1]Salary Information'!$A$1:$L$1,0),FALSE) -> 350.9395161 | K12: =E12*7 -> 1085 | M12: 80719847 | N12: m.deiber@wrl.unsw.edu.au
A13: Flocard, Francois | B13: General Staff 8 1 | C13: 0.17 | D13: 220 | E13: =IF(ISNA(HLOOKUP([1]StaffDetails!A13,'[1]Project Information'!$D$13:$J$14,2,FALSE)),D13,(HLOOKUP([1]StaffDetails!A13,'[1]Project Information'!$D$13:$J$14,2,FALSE))) -> 220 | G13: General Staff | H13: 8 | I13: 1 | J13: =VLOOKUP(B13,'[1]Salary Information'!$A:$L,MATCH($J$1,'[1]Salary Information'!$A$1:$L$1,0),FALSE) -> 430.2862903 | K13: =E13*7 -> 1540 | M13: 80719823 | N13: f.flocard@wrl.unsw.edu.au
A14: Harrison, Alice | B14: General Staff 6 1 | C14: 0.17 | D14: 155 | E14: =IF(ISNA(HLOOKUP([1]StaffDetails!A14,'[1]Project Information'!$D$13:$J$14,2,FALSE)),D14,(HLOOKUP([1]StaffDetails!A14,'[1]Project Information'!$D$13:$J$14,2,FALSE))) -> 155 | G14: General Staff | H14: 6 | I14: 1 | J14: =VLOOKUP(B14,'[1]Salary Information'!$A:$L,MATCH($J$1,'[1]Salary Information'!$A$1:$L$1,0),FALSE) -> 350.9395161 | K14: =E14*7 -> 1085 | M14: 80719867 | N14: a.harrison@wrl.unsw.edu.au
A15: Howe, Dan | B15: General Staff 6 2 | C15: 0.17 | D15: 155 | E15: =IF(ISNA(HLOOKUP([1]StaffDetails!A15,'[1]Project Information'!$D$13:$J$14,2,FALSE)),D15,(HLOOKUP([1]StaffDetails!A15,'[1]Project Information'!$D$13:$J$14,2,FALSE))) -> 155 | G15: General Staff | H15: 6 | I15: 2 | J15: =VLOOKUP(B15,'[1]Salary Information'!$A:$L,MATCH($J$1,'[1]Salary Information'!$A$1:$L$1,0),FALSE) -> 362.5766129 | K15: =E15*7 -> 1085 | M15: 80719856 | N15: d.howe@wrl.unsw.edu.au
A16: Glamore, William | B16: Academic Staff D 1 | C16: 0.17 | D16: 285 | E16: =IF(ISNA(HLOOKUP([1]StaffDetails!A16,'[1]Project Information'!$D$13:$J$14,2,FALSE)),D16,(HLOOKUP([1]StaffDetails!A16,'[1]Project Information'!$D$13:$J$14,2,FALSE))) -> 285 | G16: Academic Staff | H16: D | I16: 1 | J16: =VLOOKUP(B16,'[1]Salary Information'!$A:$L,MATCH($J$1,'[1]Salary Information'!$A$1:$L$1,0),FALSE) -> 628.1653226 | K16: 1995 | M16: 80719868 | N16: w.glamore@wrl.unsw.edu.au
A17: Jenkins, Rob | B17: General Staff 6 3 | C17: 0.17 | D17: 125 | E17: =IF(ISNA(HLOOKUP([1]StaffDetails!A17,'[1]Project Information'!$D$13:$J$14,2,FALSE)),D17,(HLOOKUP([1]StaffDetails!A17,'[1]Project Information'!$D$13:$J$14,2,FALSE))) -> 125 | G17: General Staff | H17: 6 | I17: 3 | J17: =VLOOKUP(B17,'[1]Salary Information'!$A:$L,MATCH($J$1,'[1]Salary Information'!$A$1:$L$1,0),FALSE) -> 374.3669355 | K17: 875 | M17: 80719830 | N17: r.jenkins@wrl.unsw.edu.au
A18: Johnson, Coral | B18: General Staff 4 3 | C18: 0.17 | D18: 125 | E18: =IF(ISNA(HLOOKUP([1]StaffDetails!A18,'[1]Project Information'!$D$13:$J$14,2,FALSE)),D18,(HLOOKUP([1]StaffDetails!A18,'[1]Project Information'!$D$13:$J$14,2,FALSE))) -> 125 | G18: General Staff | H18: 4 | I18: 3 | J18: =VLOOKUP(B18,'[1]Salary Information'!$A:$L,MATCH($J$1,'[1]Salary Information'!$A$1:$L$1,0),FALSE) -> 289.891129 | K18: 875 | M18: 80719827 | N18: c.johnson@wrl.unsw.edu.au
A19: Lumiatti, Gabriela | B19: General Staff 5 3 | C19: 0.17 | D19: 150 | E19: =IF(ISNA(HLOOKUP([1]StaffDetails!A19,'[1]Project Information'!$D$13:$J$14,2,FALSE)),D19,(HLOOKUP([1]StaffDetails!A19,'[1]Project Information'!$D$13:$J$14,2,FALSE))) -> 150 | G19: General Staff | H19: 5 | I19: 3 | J19: =VLOOKUP(B19,'[1]Salary Information'!$A:$L,MATCH($J$1,'[1]Salary Information'!$A$1:$L$1,0),FALSE) -> 319.4516129 | K19: 1050 | M19: 80719843 | N19: g.lumiatti@wrl.unsw.edu.au
A20: Mathews, Ross | B20: General Staff 5 5 | C20: 0.17 | D20: 125 | E20: =IF(ISNA(HLOOKUP([1]StaffDetails!A20,'[1]Project Information'!$D$13:$J$14,2,FALSE)),D20,(HLOOKUP([1]StaffDetails!A20,'[1]Project Information'!$D$13:$J$14,2,FALSE))) -> 125 | G20: General Staff | H20: 5 | I20: 5 | J20: =VLOOKUP(B20,'[1]Salary Information'!$A:$L,MATCH($J$1,'[1]Salary Information'!$A$1:$L$1,0),FALSE) -> 339.1774194 | K20: 875 | M20: 80719831 | N20: ross.mathews@unsw.edu.au
A21: Miller, Brett | B21: General Staff 10+ Min | C21: 0.0925 | D21: 300 | E21: =IF(ISNA(HLOOKUP([1]StaffDetails!A21,'[1]Project Information'!$D$13:$J$14,2,FALSE)),D21,(HLOOKUP([1]StaffDetails!A21,'[1]Project Information'!$D$13:$J$14,2,FALSE))) -> 300 | G21: General Staff | H21: 10+ | I21: Min | J21: =VLOOKUP(B21,'[1]Salary Information'!$A:$L,MATCH($J$1,'[1]Salary Information'!$A$1:$L$1,0),FALSE) -> 545.4193548 | K21: 2100 | M21: 80719846 | N21: b.miller@wrl.unsw.edu.au
A22: Modra, Ben | B22: General Staff 8 2 | C22: 0.17 | D22: 220 | E22: =IF(ISNA(HLOOKUP([1]StaffDetails!A22,'[1]Project Information'!$D$13:$J$14,2,FALSE)),D22,(HLOOKUP([1]StaffDetails!A22,'[1]Project Information'!$D$13:$J$14,2,FALSE))) -> 220 | G22: General Staff | H22: 8 | I22: 2 | J22: =VLOOKUP(B22,'[1]Salary Information'!$A:$L,MATCH($J$1,'[1]Salary Information'!$A$1:$L$1,0),FALSE) -> 443.8830645 | K22: 1540 | M22: 80719837 | N22: b.modra@wrl.unsw.edu.au
A23: O'Carroll, Denis | B23: Academic Staff E 1 | C23: 0.17 | D23: 350 | E23: =IF(ISNA(HLOOKUP([1]StaffDetails!A23,'[1]Project Information'!$D$13:$J$14,2,FALSE)),D23,(HLOOKUP([1]StaffDetails!A23,'[1]Project Information'!$D$13:$J$14,2,FALSE))) -> 350 | G23: Academic Staff | H23: E | I23: 1 | J23: =VLOOKUP(B23,'[1]Salary Information'!$A:$L,MATCH($J$1,'[1]Salary Information'!$A$1:$L$1,0),FALSE) -> 803.4112903 | K23: =E23*7 -> 2450 | M23: 80719822 | N23: d.ocarroll@wrl.unsw.edu.au
A24: Paice, Larry | B24: General Staff 6 2 | C24: 0.17 | D24: 125 | E24: =IF(ISNA(HLOOKUP([1]StaffDetails!A24,'[1]Project Information'!$D$13:$J$14,2,FALSE)),D24,(HLOOKUP([1]StaffDetails!A24,'[1]Project Information'!$D$13:$J$14,2,FALSE))) -> 125 | G24: General Staff | H24: 6 | I24: 2 | J24: =VLOOKUP(B24,'[1]Salary Information'!$A:$L,MATCH($J$1,'[1]Salary Information'!$A$1:$L$1,0),FALSE) -> 362.5766129 | K24: 875 | M24: 80719875 | N24: l.paice@wrl.unsw.edu.au
A25: Rahman, Priom | B25: General Staff 6 1 | C25: 0.17 | D25: 165 | E25: =IF(ISNA(HLOOKUP([1]StaffDetails!A25,'[1]Project Information'!$D$13:$J$14,2,FALSE)),D25,(HLOOKUP([1]StaffDetails!A25,'[1]Project Information'!$D$13:$J$14,2,FALSE))) -> 165 | G25: General Staff | H25: 6 | I25: 1 | J25: =VLOOKUP(B25,'[1]Salary Information'!$A:$L,MATCH($J$1,'[1]Salary Information'!$A$1:$L$1,0),FALSE) -> 350.9395161 | K25: 1155 | M25: 80719840 | N25: p.rahman@wrl.unsw.edu.au
A26: Rayner, Duncan | B26: General Staff 7 4 | C26: 0.17 | D26: 220 | E26: =IF(ISNA(HLOOKUP([1]StaffDetails!A26,'[1]Project Information'!$D$13:$J$14,2,FALSE)),D26,(HLOOKUP([1]StaffDetails!A26,'[1]Project Information'!$D$13:$J$14,2,FALSE))) -> 220 | G26: General Staff | H26: 7 | I26: 4 | J26: =VLOOKUP(B26,'[1]Salary Information'!$A:$L,MATCH($J$1,'[1]Salary Information'!$A$1:$L$1,0),FALSE) -> 416.6048387 | K26: 1540 | M26: 80719851 | N26: d.rayner@wrl.unsw.edu.au
A27: Ruprecht, Jamie | B27: General Staff 7 1 | C27: 0.17 | D27: 165 | E27: =IF(ISNA(HLOOKUP([1]StaffDetails!A27,'[1]Project Information'!$D$13:$J$14,2,FALSE)),D27,(HLOOKUP([1]StaffDetails!A27,'[1]Project Information'!$D$13:$J$14,2,FALSE))) -> 165 | G27: General Staff | H27: 7 | I27: 1 | J27: =VLOOKUP(B27,'[1]Salary Information'!$A:$L,MATCH($J$1,'[1]Salary Information'!$A$1:$L$1,0),FALSE) -> 384.9274194 | K27: 1155 | M27: 80719854 | N27: j.ruprecht@wrl.unsw.edu.au
A28: Simpson, James | B28: General Staff 5 3 | C28: 0.17 | D28: 150 | E28: =IF(ISNA(HLOOKUP([1]StaffDetails!A28,'[1]Project Information'!$D$13:$J$14,2,FALSE)),D28,(HLOOKUP([1]StaffDetails!A28,'[1]Project Information'!$D$13:$J$14,2,FALSE))) -> 150 | G28: General Staff | H28: 5 | I28: 3 | J28: =VLOOKUP(B28,'[1]Salary Information'!$A:$L,MATCH($J$1,'[1]Salary Information'!$A$1:$L$1,0),FALSE) -> 319.4516129 | K28: 1050 | M28: 80719872 | N28: j.simpson@wrl.unsw.edu.au
A29: Smith, Grantley | B29: General Staff 10+ Min | C29: 0.17 | D29: 300 | E29: =IF(ISNA(HLOOKUP([1]StaffDetails!A29,'[1]Project Information'!$D$13:$J$14,2,FALSE)),D29,(HLOOKUP([1]StaffDetails!A29,'[1]Project Information'!$D$13:$J$14,2,FALSE))) -> 300 | G29: General Staff | H29: 10+ | I29: Min | J29: =VLOOKUP(B29,'[1]Salary Information'!$A:$L,MATCH($J$1,'[1]Salary Information'!$A$1:$L$1,0),FALSE) -> 545.4193548 | K29: 2100 | M29: 80719862 | N29: G.Smith@wrl.unsw.edu.au
A30: Tucker, Toby | B30: General Staff 5 5 | C30: 0.17 | D30: 155 | E30: =IF(ISNA(HLOOKUP([1]StaffDetails!A30,'[1]Project Information'!$D$13:$J$14,2,FALSE)),D30,(HLOOKUP([1]StaffDetails!A30,'[1]Project Information'!$D$13:$J$14,2,FALSE))) -> 155 | G30: General Staff | H30: 5 | I30: 5 | J30: =VLOOKUP(B30,'[1]Salary Information'!$A:$L,MATCH($J$1,'[1]Salary Information'!$A$1:$L$1,0),FALSE) -> 339.1774194 | K30: 1085 | M30: 80719844 | N30: t.tucker@wrl.unsw.edu.au
A31: Branch, Amos | B31: Academic Staff B 6 | C31: 0.17 | D31: 170 | E31: =IF(ISNA(HLOOKUP([1]StaffDetails!A31,'[1]Project Information'!$D$13:$J$14,2,FALSE)),D31,(HLOOKUP([1]StaffDetails!A31,'[1]Project Information'!$D$13:$J$14,2,FALSE))) -> 170 | G31: Academic Staff | H31: B | I31: 6 | J31: =VLOOKUP(B31,'[1]Salary Information'!$A:$L,MATCH($J$1,'[1]Salary Information'!$A$1:$L$1,0),FALSE) -> 602.3951613 | K31: 1190 | M31: 93856437 | N31: amos.branch@unsw.edu.au
A32: Simmons, Joshua | B32: General Staff 5 3 | C32: 0.17 | D32: 150 | E32: 150 | G32: General Staff | H32: 5 | I32: 3 | J32: =VLOOKUP(B32,'[1]Salary Information'!$A:$L,MATCH($J$1,'[1]Salary Information'!$A$1:$L$1,0),FALSE) -> 319.4516129 | K32: 1050 | M32: 80719871 | N32: j.simmons@unsw.edu.au
A33: New Grad | B33: General Staff 5 3 | C33: 0.17 | D33: 150 | E33: 150 | G33: General Staff | H33: 5 | I33: 3 | J33: =VLOOKUP(B33,'[1]Salary Information'!$A:$L,MATCH($J$1,'[1]Salary Information'!$A$1:$L$1,0),FALSE) -> 319.4516129 | K33: 1050

Sheet Salary Information (hidden)
B1: 2018-01-01 | C1: 2018-07-01 | D1: 2019-01-01 | E1: 2019-07-01 | F1: 2020-01-01 | G1: 2020-07-01
A2: Salary Information | P2: https://www.hr.unsw.edu.au/services/salaries/acadsal.html
B3: Daily Rate | P3: Updated 5/12/2018 from UNSW HR Website
B4: =B5&B6 -> 2018 1 Jan - 30 Jun | C4: =C5&C6 -> 2018 1 Jul - 31 Dec | D4: 2019 1 Jan - 30 Jun | E4: =E5&E6 -> 2019 1 Jul - 31 Dec | F4: 2020 1 Jan - 30 Jun | G4: 2020 1 Jul - 31 Dec | H4: 2018 1 Jan - 30 Jun | I4: =I5&I6 -> 2018 1 Jul - 31 Dec | J4: 2019 1 Jan - 30 Jun | K4: 2019 1 Jul - 31 Dec | L4: 2020 1 Jan - 30 Jun | M4: =M5&M6 -> 2020 1 Jul - 31 Dec
B5: 2018 | C5: 2018 | D5: 2019 | E5: 2019 | F5: 2020 | G5: 2020 | H5: 2018 | I5: 2018 | J5: 2019 | K5: =I5+1 -> 2019 | L5: =J5+1 -> 2020 | M5: =K5+1 -> 2020
A6: Category | B6: 1 Jan - 30 Jun | C6: 1 Jul - 31 Dec | D6: 1 Jan - 30 Jun | E6: 1 Jul - 31 Dec | F6: 1 Jan - 30 Jun | G6: 1 Jul - 31 Dec | H6: 1 Jan - 30 Jun | I6: 1 Jul - 31 Dec | J6: 1 Jan - 30 Jun | K6: 1 Jul - 31 Dec | L6: 1 Jan - 30 Jun | M6: 1 Jul - 31 Dec
A7: Academic Staff A 1 | B7: =H7/248 -> 296.7620968 | C7: =I7/248 -> 302.6975806 | D7: 308.75 | E7: 311.8387097 | F7: =L7/248 -> 314.9556452 | G7: =M7/248 -> 318.1048387 | H7: 73597 | I7: 75069 | J7: 76570 | K7: 77336 | L7: 78109 | M7: 78890 | N7: 79679
A8: Academic Staff A 2 | B8: =H8/248 -> 312.4516129 | C8: =I8/248 -> 318.7016129 | D8: =J8/248 -> 325.0766129 | E8: =K8/248 -> 328.3266129 | F8: =L8/248 -> 331.608871 | G8: =M8/248 -> 334.9233871 | H8: 77488 | I8: 79038 | J8: 80619 | K8: 81425 | L8: 82239 | M8: 83061 | N8: 83892
A9: Academic Staff A 3 | B9: 328.3024194 | C9: 334.8669355 | D9: 341.5645161 | E9: 344.9798387 | F9: 348.4314516 | G9: 351.9153226 | H9: 81419 | I9: 83047 | J9: 84708 | K9: 85555 | L9: 86411 | M9: 87275 | N9: 88148
A10: Academic Staff A 4 | B10: 344.1612903 | C10: 351.0443548 | D10: 358.0645161 | E10: 361.6451613 | F10: 365.2620968 | G10: 368.9153226 | H10: 85352 | I10: 87059 | J10: 88800 | K10: 89688 | L10: 90585 | M10: 91491 | N10: 92406
A11: Academic Staff A 5 | B11: 357.0524194 | C11: 364.1935484 | D11: 371.4758065 | E11: 375.1935484 | F11: 378.9435484 | G11: 382.733871 | H11: 88549 | I11: 90320 | J11: 92126 | K11: 93048 | L11: 93978 | M11: 94918 | N11: 95867
A12: Academic Staff A 6 | B12: 369.9314516 | C12: 377.3306452 | D12: 384.875 | E12: 388.7258065 | F12: 392.6129032 | G12: 396.5403226 | H12: 91743 | I12: 93578 | J12: 95449 | K12: 96404 | L12: 97368 | M12: 98342 | N12: 99325
A13: Academic Staff A | B13: 382.8104839 | C13: 390.4677419 | D13: 398.2741935 | E13: 402.2580645 | F13: 406.2822581 | G13: 410.3427419 | H13: 94937 | I13: 96836 | J13: 98772 | K13: 99760 | L13: 100758 | M13: 101765 | N13: 102783
A14: Academic Staff A | B14: 395.6733871 | C14: 403.5887097 | D14: 411.6572581 | E14: 415.7741935 | F14: 419.9314516 | G14: 424.1330645 | H14: 98127 | I14: 100090 | J14: 102091 | K14: 103112 | L14: 104143 | M14: 105185 | N14: 106237
A15: Academic Staff B 1 | B15: 504.6774194 | C15: 514.7701613 | D15: 525.0645161 | E15: 530.3185484 | F15: 535.6209677 | G15: 540.9758065 | H15: 125160 | I15: 127663 | J15: 130216 | K15: 131519 | L15: 132834 | M15: 134162 | N15: 135504
A16: Academic Staff B 2 | B16: 519.5443548 | C16: 529.9354839 | D16: 540.5322581 | E16: 545.9395161 | F16: 551.3991935 | G16: 556.9112903 | H16: 128847 | I16: 131424 | J16: 134052 | K16: 135393 | L16: 136747 | M16: 138114 | N16: 139495
A17: Academic Staff B 3 | B17: 534.3991935 | C17: 545.0887097 | D17: 555.9879032 | E17: 561.5483871 | F17: 567.1653226 | G17: 572.8346774 | H17: 132531 | I17: 135182 | J17: 137885 | K17: 139264 | L17: 140657 | M17: 142063 | N17: 143484
A18: Academic Staff B 4 | B18: 549.2701613 | C18: 560.2540323 | D18: 571.4596774 | E18: 577.1733871 | F18: 582.9475806 | G18: 588.7782258 | H18: 136219 | I18: 138943 | J18: 141722 | K18: 143139 | L18: 144571 | M18: 146017 | N18: 147477
A19: Academic Staff B 5 | B19: 564.125 | C19: 575.4072581 | D19: 586.9153226 | E19: 592.7862903 | F19: 598.7137097 | G19: 604.7016129 | H19: 139903 | I19: 142701 | J19: 145555 | K19: 147011 | L19: 148481 | M19: 149966 | N19: 151465
A20: Academic Staff B 6 | B20: 579.0040323 | C20: 590.5846774 | D20: 602.3951613 | E20: 608.4193548 | F20: 614.5040323 | G20: 620.6491935 | H20: 143593 | I20: 146465 | J20: 149394 | K20: 150888 | L20: 152397 | M20: 153921 | N20: 155460
A21: Academic Staff C 1 | B21: 504.6774194 | C21: 514.7701613 | D21: 525.0645161 | E21: 530.3185484 | F21: 535.6209677 | G21: 540.9758065 | H21: 125160 | I21: 127663 | J21: 130216 | K21: 131519 | L21: 132834 | M21: 134162 | N21: 135504
A22: Academic Staff C 2 | B22: 519.5443548 | C22: 529.9354839 | D22: 540.5322581 | E22: 545.9395161 | F22: 551.3991935 | G22: 556.9112903 | H22: 128847 | I22: 131424 | J22: 134052 | K22: 135393 | L22: 136747 | M22: 138114 | N22: 139495
A23: Academic Staff C 3 | B23: 534.3991935 | C23: 545.0887097 | D23: 555.9879032 | E23: 561.5483871 | F23: 567.1653226 | G23: 572.8346774 | H23: 132531 | I23: 135182 | J23: 137885 | K23: 139264 | L23: 140657 | M23: 142063 | N23: 143484
A24: Academic Staff C 4 | B24: 549.2701613 | C24: 560.2540323 | D24: 571.4596774 | E24: 577.1733871 | F24: 582.9475806 | G24: 588.7782258 | H24: 136219 | I24: 138943 | J24: 141722 | K24: 143139 | L24: 144571 | M24: 146017 | N24: 147477
A25: Academic Staff C 5 | B25: 564.125 | C25: 575.4072581 | D25: 586.9153226 | E25: 592.7862903 | F25: 598.7137097 | G25: 604.7016129 | H25: 139903 | I25: 142701 | J25: 145555 | K25: 147011 | L25: 148481 | M25: 149966 | N25: 151465
A26: Academic Staff C 6 | B26: 579.0040323 | C26: 590.5846774 | D26: 602.3951613 | E26: 608.4193548 | F26: 614.5040323 | G26: 620.6491935 | H26: 143593 | I26: 146465 | J26: 149394 | K26: 150888 | L26: 152397 | M26: 153921 | N26: 155460
A27: Academic Staff D 1 | B27: 603.7741935 | C27: 615.8508065 | D27: 628.1653226 | E27: 634.4475806 | F27: 640.7943548 | G27: 647.2016129 | H27: 149736 | I27: 152731 | J27: 155785 | K27: 157343 | L27: 158917 | M27: 160506 | N27: 162111
A28: Academic Staff D 2 | B28: 623.5725806 | C28: 636.0443548 | D28: 648.766129 | E28: 655.2540323 | F28: 661.8064516 | G28: 668.4233871 | H28: 154646 | I28: 157739 | J28: 160894 | K28: 162503 | L28: 164128 | M28: 165769 | N28: 167427
A29: Academic Staff D 3 | B29: 643.3870968 | C29: 656.2540323 | D29: 669.3790323 | E29: 676.0725806 | F29: 682.8346774 | G29: 689.6612903 | H29: 159560 | I29: 162751 | J29: 166006 | K29: 167666 | L29: 169343 | M29: 171036 | N29: 172747
A30: Academic Staff D 4 | B30: 663.2056452 | C30: 676.4717742 | D30: 690 | E30: 696.8991935 | F30: 703.8669355 | G30: 710.9072581 | H30: 164475 | I30: 167765 | J30: 171120 | K30: 172831 | L30: 174559 | M30: 176305 | N30: 178068
A31: Academic Staff E 1 | B31: 772.2137097 | C31: 787.6572581 | D31: 803.4112903 | E31: 811.4435484 | F31: 819.5604839 | G31: 827.7540323 | H31: 191509 | I31: 195339 | J31: 199246 | K31: 201238 | L31: 203251 | M31: 205283 | N31: 207336
A32: General Staff 1 1 | B32: 191.1451613 | C32: 194.9677419 | D32: 198.8669355 | E32: 200.8548387 | F32: 202.8629032 | G32: 204.8951613 | H32: 47404 | I32: 48352 | J32: 49319 | K32: 49812 | L32: 50310 | M32: 50814 | N32: 51322
A33: General Staff 1 2 | B33: 196.4596774 | C33: 200.3870968 | D33: 204.3951613 | E33: 206.4395161 | F33: 208.5040323 | G33: 210.5887097 | H33: 48722 | I33: 49696 | J33: 50690 | K33: 51197 | L33: 51709 | M33: 52226 | N33: 52749
A34: General Staff 1 3 | B34: 201.7782258 | C34: 205.8145161 | D34: 209.9314516 | E34: 212.0282258 | F34: 214.1491935 | G34: 216.2903226 | H34: 50041 | I34: 51042 | J34: 52063 | K34: 52583 | L34: 53109 | M34: 53640 | N34: 54177
A35: General Staff 1 4 | B35: 207.0967742 | C35: 211.2379032 | D35: 215.4637097 | E35: 217.6169355 | F35: 219.7943548 | G35: 221.9919355 | H35: 51360 | I35: 52387 | J35: 53435 | K35: 53969 | L35: 54509 | M35: 55054 | N35: 55605
A36: General Staff 1 5 | B36: 212.3951613 | C36: 216.641129 | D36: 220.9758065 | E36: 223.1854839 | F36: 225.4193548 | G36: 227.6733871 | H36: 52674 | I36: 53727 | J36: 54802 | K36: 55350 | L36: 55904 | M36: 56463 | N36: 57027
A37: General Staff 2 1 | B37: 218.016129 | C37: 222.375 | D37: 226.8225806 | E37: 229.0927419 | F37: 231.3830645 | G37: 233.6975806 | H37: 54068 | I37: 55149 | J37: 56252 | K37: 56815 | L37: 57383 | M37: 57957 | N37: 58536
A38: General Staff 2 2 | B38: 223.516129 | C38: 227.9879032 | D38: 232.5443548 | E38: 234.8709677 | F38: 237.2217742 | G38: 239.5927419 | H38: 55432 | I38: 56541 | J38: 57671 | K38: 58248 | L38: 58831 | M38: 59419 | N38: 60013
A39: General Staff 3 1 | B39: 230.1975806 | C39: 234.8024194 | D39: 239.4959677 | E39: 241.891129 | F39: 244.3104839 | G39: 246.7540323 | H39: 57089 | I39: 58231 | J39: 59395 | K39: 59989 | L39: 60589 | M39: 61195 | N39: 61807
A40: General Staff 3 2 | B40: 236.8709677 | C40: 241.608871 | D40: 246.4395161 | E40: 248.9032258 | F40: 251.3951613 | G40: 253.9072581 | H40: 58744 | I40: 59919 | J40: 61117 | K40: 61728 | L40: 62346 | M40: 62969 | N40: 63599
A41: General Staff 3 3 | B41: 243.5362903 | C41: 248.4072581 | D41: 253.375 | E41: 255.9072581 | F41: 258.4677419 | G41: 261.0524194 | H41: 60397 | I41: 61605 | J41: 62837 | K41: 63465 | L41: 64100 | M41: 64741 | N41: 65388
A42: General Staff 3 4 | B42: 250.2056452 | C42: 255.2096774 | D42: 260.3145161 | E42: 262.9153226 | F42: 265.5443548 | G42: 268.2016129 | H42: 62051 | I42: 63292 | J42: 64558 | K42: 65203 | L42: 65855 | M42: 66514 | N42: 67179
A43: General Staff 3 5 | B43: 256.8669355 | C43: 262.0040323 | D43: 267.2459677 | E43: 269.9153226 | F43: 272.6169355 | G43: 275.3427419 | H43: 63703 | I43: 64977 | J43: 66277 | K43: 66939 | L43: 67609 | M43: 68285 | N43: 68968
A44: General Staff 4 1 | B44: 264.1370968 | C44: 269.4193548 | D44: 274.8064516 | E44: 277.5564516 | F44: 280.3306452 | G44: 283.1370968 | H44: 65506 | I44: 66816 | J44: 68152 | K44: 68834 | L44: 69522 | M44: 70218 | N44: 70920
A45: General Staff 4 2 | B45: 271.375 | C45: 276.8024194 | D45: 282.3387097 | E45: 285.1612903 | F45: 288.0120968 | G45: 290.8951613 | H45: 67301 | I45: 68647 | J45: 70020 | K45: 70720 | L45: 71427 | M45: 72142 | N45: 72863
A46: General Staff 4 3 | B46: 278.6330645 | C46: 284.2056452 | D46: 289.891129 | E46: 292.7903226 | F46: 295.7177419 | G46: 298.6733871 | H46: 69101 | I46: 70483 | J46: 71893 | K46: 72612 | L46: 73338 | M46: 74071 | N46: 74812
A47: General Staff 5 1 | B47: 288.108871 | C47: 293.8709677 | D47: 299.75 | E47: 302.7459677 | F47: 305.7741935 | G47: 308.8306452 | H47: 71451 | I47: 72880 | J47: 74338 | K47: 75081 | L47: 75832 | M47: 76590 | N47: 77356
A48: General Staff 5 2 | B48: 297.5725806 | C48: 303.5241935 | D48: 309.5927419 | E48: 312.6895161 | F48: 315.8185484 | G48: 318.9758065 | H48: 73798 | I48: 75274 | J48: 76779 | K48: 77547 | L48: 78323 | M48: 79106 | N48: 79897
A49: General Staff 5 3 | B49: 307.0483871 | C49: 313.1895161 | D49: 319.4516129 | E49: 322.6491935 | F49: 325.875 | G49: 329.1330645 | H49: 76148 | I49: 77671 | J49: 79224 | K49: 80017 | L49: 80817 | M49: 81625 | N49: 82441
A50: General Staff 5 4 | B50: 316.516129 | C50: 322.8467742 | D50: 329.3024194 | E50: 332.5967742 | F50: 335.9233871 | G50: 339.2822581 | H50: 78496 | I50: 80066 | J50: 81667 | K50: 82484 | L50: 83309 | M50: 84142 | N50: 84983
A51: General Staff 5 5 | B51: 326.0080645 | C51: 332.5282258 | D51: 339.1774194 | E51: 342.5725806 | F51: 345.9959677 | G51: 349.4556452 | H51: 80850 | I51: 82467 | J51: 84116 | K51: 84958 | L51: 85807 | M51: 86665 | N51: 87532
A52: General Staff 6 1 | B52: 337.3104839 | C52: 344.0564516 | D52: 350.9395161 | E52: 354.4475806 | F52: 357.9919355 | G52: 361.5725806 | H52: 83653 | I52: 85326 | J52: 87033 | K52: 87903 | L52: 88782 | M52: 89670 | N52: 90566
A53: General Staff 6 2 | B53: 348.4959677 | C53: 355.4677419 | D53: 362.5766129 | E53: 366.2016129 | F53: 369.8629032 | G53: 373.5604839 | H53: 86427 | I53: 88156 | J53: 89919 | K53: 90818 | L53: 91726 | M53: 92643 | N53: 93570
A54: General Staff 6 3 | B54: 359.8306452 | C54: 367.0282258 | D54: 374.3669355 | E54: 378.1129032 | F54: 381.891129 | G54: 385.7096774 | H54: 89238 | I54: 91023 | J54: 92843 | K54: 93772 | L54: 94709 | M54: 95656 | N54: 96613
A55: General Staff 7 1 | B55: 369.9798387 | C55: 377.3790323 | D55: 384.9274194 | E55: 388.7782258 | F55: 392.6653226 | G55: 396.5887097 | H55: 91755 | I55: 93590 | J55: 95462 | K55: 96417 | L55: 97381 | M55: 98354 | N55: 99338
A56: General Staff 7 2 | B56: 380.1290323 | C56: 387.7298387 | D56: 395.4879032 | E56: 399.4395161 | F56: 403.4354839 | G56: 407.4717742 | H56: 94272 | I56: 96157 | J56: 98081 | K56: 99061 | L56: 100052 | M56: 101053 | N56: 102063
A57: General Staff 7 3 | B57: 390.2741935 | C57: 398.0806452 | D57: 406.0403226 | E57: 410.1008065 | F57: 414.2016129 | G57: 418.3427419 | H57: 96788 | I57: 98724 | J57: 100698 | K57: 101705 | L57: 102722 | M57: 103749 | N57: 104787
A58: General Staff 7 4 | B58: 400.4274194 | C58: 408.4354839 | D58: 416.6048387 | E58: 420.7701613 | F58: 424.9798387 | G58: 429.2298387 | H58: 99306 | I58: 101292 | J58: 103318 | K58: 104351 | L58: 105395 | M58: 106449 | N58: 107513
A59: General Staff 8 1 | B59: 413.5766129 | C59: 421.8467742 | D59: 430.2862903 | E59: 434.5887097 | F59: 438.9354839 | G59: 443.3225806 | H59: 102567 | I59: 104618 | J59: 106711 | K59: 107778 | L59: 108856 | M59: 109944 | N59: 111044
A60: General Staff 8 2 | B60: 426.6451613 | C60: 435.1774194 | D60: 443.8830645 | E60: 448.3185484 | F60: 452.8024194 | G60: 457.3306452 | H60: 105808 | I60: 107924 | J60: 110083 | K60: 111183 | L60: 112295 | M60: 113418 | N60: 114552
A61: General Staff 8 3 | B61: 439.7822581 | C61: 448.5766129 | D61: 457.5483871 | E61: 462.125 | F61: 466.7459677 | G61: 471.4153226 | H61: 109066 | I61: 111247 | J61: 113472 | K61: 114607 | L61: 115753 | M61: 116911 | N61: 118080
A62: General Staff 8 4 | B62: 452.8387097 | C62: 461.8951613 | D62: 471.1330645 | E62: 475.8427419 | F62: 480.6048387 | G62: 485.4072581 | H62: 112304 | I62: 114550 | J62: 116841 | K62: 118009 | L62: 119190 | M62: 120381 | N62: 121585
A63: General Staff 8 5 | B63: 465.983871 | C63: 475.3024194 | D63: 484.8104839 | E63: 489.6572581 | F63: 494.5524194 | G63: 499.5 | H63: 115564 | I63: 117875 | J63: 120233 | K63: 121435 | L63: 122649 | M63: 123876 | N63: 125115
A64: General Staff 9 1 | B64: 480.6733871 | C64: 490.2862903 | D64: 500.0927419 | E64: 505.0927419 | F64: 510.1451613 | G64: 515.2459677 | H64: 119207 | I64: 121591 | J64: 124023 | K64: 125263 | L64: 126516 | M64: 127781 | N64: 129059
A65: General Staff 9 2 | B65: =H65/248 -> 495.3709677 | C65: =I65/248 -> 505.2782258 | D65: =J65/248 -> 515.3830645 | E65: =K65/248 -> 520.5362903 | F65: =L65/248 -> 525.7419355 | G65: 531 | H65: 122852 | I65: 125309 | J65: 127815 | K65: 129093 | L65: 130384 | M65: 131688 | N65: 133005
A66: General Staff 9 3 | B66: 510.0443548 | C66: 520.2459677 | D66: 530.6491935 | E66: 535.9556452 | F66: 541.3145161 | G66: 546.7298387 | H66: 126491 | I66: 129021 | J66: 131601 | K66: 132917 | L66: 134246 | M66: 135589 | N66: 136945
A67: General Staff 10+ Min | B67: 524.2419355 | C67: 534.7258065 | D67: 545.4193548 | E67: 550.875 | F67: 556.3830645 | G67: 561.9475806 | H67: 130012 | I67: 132612 | J67: 135264 | K67: 136617 | L67: 137983 | M67: 139363 | N67: 140757
A68: Casual (General) Staff 1 1
A69: Casual (General) Staff 1 2
A70: Casual (General) Staff 2 1
A71: Casual (General) Staff 2 2
A72: Casual (General) Staff 3 1
A73: Casual (General) Staff 3 2
A74: Casual (General) Staff 4 1
A75: Casual (General) Staff 4 2
A76: Casual (General) Staff 5 1
A77: Casual (General) Staff 5 2
A78: Casual (General) Staff 6 1
A79: Casual (General) Staff 6 2
A80: Casual (General) Staff 7 1
A81: Casual (General) Staff 7 2
A82: Casual (General) Staff 8 1
A83: Casual (General) Staff 8 2
A84: Casual (General) Staff 9 1
A85: Casual (General) Staff 9 2

Sheet RPU Budget_Template (hidden)
A1: BUDGET TABLE | E1: Generated on: | O1: ='Project Information'!G3&" - "&DAY(F1)&"-"&MONTH(F1)&"-"&YEAR(F1) -> WRL2018xxx - 0-1-1900
A3: Project Title:
A4: Project Sponsor:
A5: Project Start Date: | C5: Project End Date:
A7: UNSW Personnel: | B7: Classification | C7: Level | D7: Step | E7: Start Date | F7: End Date | G7: Location | H7: UNSW Indirect % | I7: Markup %
B8: =IF(A8="","",VLOOKUP(A8,StaffDetails!A:K,7,FALSE)) ->  | C8: =IF(A8="","",VLOOKUP(A8,StaffDetails!A:K,8,FALSE)) ->  | D8: =IF(A8="","",VLOOKUP(A8,StaffDetails!A:K,9,FALSE)) ->  | E8: =IF(A8="","",$B$5) ->  | F8: =IF(A8="","",$D$5) ->  | G8: =IF(A8="","","UNSW (excluding Canberra campus)") ->  | H8: =IF(A8="","",'Project Information'!$I$2) ->  | I8: =IF(A8="","",R18) -> 
B9: =IF(A9="","",VLOOKUP(A9,StaffDetails!A:K,7,FALSE)) ->  | C9: =IF(A9="","",VLOOKUP(A9,StaffDetails!A:K,8,FALSE)) ->  | D9: =IF(A9="","",VLOOKUP(A9,StaffDetails!A:K,9,FALSE)) ->  | E9: =IF(A9="","",$B$5) ->  | F9: =IF(A9="","",$D$5) ->  | G9: =IF(A9="","","UNSW (excluding Canberra campus)") ->  | H9: =IF(A9="","",$H$8) -> 
B10: =IF(A10="","",VLOOKUP(A10,StaffDetails!A:K,7,FALSE)) ->  | C10: =IF(A10="","",VLOOKUP(A10,StaffDetails!A:K,8,FALSE)) ->  | D10: =IF(A10="","",VLOOKUP(A10,StaffDetails!A:K,9,FALSE)) ->  | H10: =IF(A10="","",$H$8) -> 
B11: =IF(A11="","",VLOOKUP(A11,StaffDetails!A:K,7,FALSE)) ->  | C11: =IF(A11="","",VLOOKUP(A11,StaffDetails!A:K,8,FALSE)) ->  | D11: =IF(A11="","",VLOOKUP(A11,StaffDetails!A:K,9,FALSE)) -> 
B12: =IF(A12="","",VLOOKUP(A12,StaffDetails!A:K,7,FALSE)) ->  | C12: =IF(A12="","",VLOOKUP(A12,StaffDetails!A:K,8,FALSE)) ->  | D12: =IF(A12="","",VLOOKUP(A12,StaffDetails!A:K,9,FALSE)) -> 
B13: =IF(A13="","",VLOOKUP(A13,StaffDetails!A:K,7,FALSE)) ->  | C13: =IF(A13="","",VLOOKUP(A13,StaffDetails!A:K,8,FALSE)) ->  | D13: =IF(A13="","",VLOOKUP(A13,StaffDetails!A:K,9,FALSE)) -> 
B14: =IF(A14="","",VLOOKUP(A14,StaffDetails!A:K,7,FALSE)) ->  | C14: =IF(A14="","",VLOOKUP(A14,StaffDetails!A:K,8,FALSE)) ->  | D14: =IF(A14="","",VLOOKUP(A14,StaffDetails!A:K,9,FALSE)) -> 
B15: =IF(A15="","",VLOOKUP(A15,StaffDetails!A:K,7,FALSE)) ->  | C15: =IF(A15="","",VLOOKUP(A15,StaffDetails!A:K,8,FALSE)) ->  | D15: =IF(A15="","",VLOOKUP(A15,StaffDetails!A:K,9,FALSE)) -> 
A17: UNSW Personnel Costs: | B17: Period Start | C17: Period End | D17: FTE | E17: Daily Rate (base salary and loadings) | F17: Daily rate to sponsor (incl all costs) | G17: Work Days | H17: Base Salary Cost | I17: Superannuation % | J17: Total Salary On-Costs | K17: Markup Rate ($) | L17: UNSW Indirect Costs | M17: Total Cost | Q17: Sal_Markup_Factor | R17: Markup Rate (%) | S17: UNSW Indirect (%)
B18: =IF(A18="","",$B$5) ->  | C18: =IF(A18="","",$D$5) ->  | E18: =IF(A18="","",VLOOKUP(A18,StaffDetails!A:K,10,FALSE)) ->  | F18: =IF(A18="","",VLOOKUP(A18,StaffDetails!A:K,11,FALSE)) ->  | H18: =IF(A18="","",E18*G18) ->  | I18: =IF(A18="","",VLOOKUP(A18,StaffDetails!A:K,3,FALSE)) ->  | J18: =IF(A18="","",IF(I18=0.17,H18*0.294165,H18*0.215078)) ->  | K18: =IF(A18="","",(G18*7*(VLOOKUP(A18,StaffDetails!A:K,5,FALSE)))-L18-J18-H18) ->  | L18: =IF(A18="","",(H18+J18)*S18) ->  | M18: =IF(A18="","",H18+J18+K18+L18) ->  | R18: =IF(A18="","",K18/(J18+H18)) ->  | S18: =IF(A18="","",'Project Information'!$I$2) -> 
B19: =IF(A19="","",$B$5) ->  | C19: =IF(A19="","",$D$5) ->  | E19: =IF(A19="","",VLOOKUP(A19,StaffDetails!A:K,10,FALSE)) ->  | F19: =IF(A19="","",VLOOKUP(A19,StaffDetails!A:K,11,FALSE)) ->  | H19: =IF(A19="","",E19*G19) ->  | I19: =IF(A19="","",VLOOKUP(A19,StaffDetails!A:K,3,FALSE)) ->  | J19: =IF(A19="","",IF(I19=0.17,H19*0.294165,H19*0.215078)) ->  | K19: =IF(A19="","",(G19*7*(VLOOKUP(A19,StaffDetails!A:K,5,FALSE)))-L19-J19-H19) ->  | S19: =IF(A9="","",$S$18) -> 
E20: =IF(A20="","",VLOOKUP(A20,StaffDetails!A:K,10,FALSE)) ->  | F20: =IF(A20="","",VLOOKUP(A20,StaffDetails!A:K,11,FALSE)) ->  | I20: =IF(A20="","",VLOOKUP(A20,StaffDetails!A:K,3,FALSE)) ->  | K20: =IF(A20="","",(G20*7*(VLOOKUP(A20,StaffDetails!A:K,5,FALSE)))-L20-J20-H20) -> 
E21: =IF(A21="","",VLOOKUP(A21,StaffDetails!A:K,10,FALSE)) ->  | F21: =IF(A21="","",VLOOKUP(A21,StaffDetails!A:K,11,FALSE)) ->  | I21: =IF(A21="","",VLOOKUP(A21,StaffDetails!A:K,3,FALSE)) ->  | K21: =IF(A21="","",(G21*7*(VLOOKUP(A21,StaffDetails!A:K,5,FALSE)))-L21-J21-H21) -> 
E22: =IF(A22="","",VLOOKUP(A22,StaffDetails!A:K,10,FALSE)) ->  | F22: =IF(A22="","",VLOOKUP(A22,StaffDetails!A:K,11,FALSE)) ->  | I22: =IF(A22="","",VLOOKUP(A22,StaffDetails!A:K,3,FALSE)) ->  | K22: =IF(A22="","",(G22*7*(VLOOKUP(A22,StaffDetails!A:K,5,FALSE)))-L22-J22-H22) -> 
E23: =IF(A23="","",VLOOKUP(A23,StaffDetails!A:K,10,FALSE)) ->  | F23: =IF(A23="","",VLOOKUP(A23,StaffDetails!A:K,11,FALSE)) ->  | I23: =IF(A23="","",VLOOKUP(A23,StaffDetails!A:K,3,FALSE)) ->  | K23: =IF(A23="","",(G23*7*(VLOOKUP(A23,StaffDetails!A:K,5,FALSE)))-L23-J23-H23) -> 
E24: =IF(A24="","",VLOOKUP(A24,StaffDetails!A:K,10,FALSE)) ->  | F24: =IF(A24="","",VLOOKUP(A24,StaffDetails!A:K,11,FALSE)) ->  | I24: =IF(A24="","",VLOOKUP(A24,StaffDetails!A:K,3,FALSE)) ->  | K24: =IF(A24="","",(G24*7*(VLOOKUP(A24,StaffDetails!A:K,5,FALSE)))-L24-J24-H24) -> 
E25: =IF(A25="","",VLOOKUP(A25,StaffDetails!A:K,10,FALSE)) ->  | F25: =IF(A25="","",VLOOKUP(A25,StaffDetails!A:K,11,FALSE)) ->  | I25: =IF(A25="","",VLOOKUP(A25,StaffDetails!A:K,3,FALSE)) ->  | K25: =IF(A25="","",(G25*7*(VLOOKUP(A25,StaffDetails!A:K,5,FALSE)))-L25-J25-H25) -> 
A26: Project Sub-Total | G26: =SUM(G18:G25) -> 0 | H26: =SUM(H18:H25) -> 0 | J26: =SUM(J18:J25) -> 0 | K26: =SUM(K18:K25) -> 0 | L26: =SUM(L18:L25) -> 0 | M26: =SUM(M18:M25) -> 0
A28: Non-UNSW Personnel | B28: Period | C28: Lump Sum | D28: Rate | E28: Quantity | F28: Base Cost | G28: Markup (%) | H28: Markup Rate ($) | I28: UNSW Indirect Costs | J28: Total Cost | S28: Markup (%)
F29: =IF(A29="","",C29) ->  | H29: =IF(A29="","",F29*G29) ->  | I29: =IF(A29="","",IF(F29*S29>20000,20000,F29*S29)) ->  | J29: =IF(A29="","",F29+H29+I29) -> 
F30: =IF(A30="","",C30) ->  | H30: =IF(A30="","",F30*G30) ->  | I30: =IF(A30="","",IF(F30*S30>20000,20000,F30*S30)) ->  | J30: =IF(A30="","",F30+H30+I30) ->  | S30: =IF(A30="","",$S$29) -> 
I31: =IF(A31="","",IF(F31*S31>20000,20000,F31*S31)) ->  | J31: =IF(A31="","",F31+H31+I31) ->  | S31: =IF(A31="","",$S$29) -> 
I32: =IF(A32="","",IF(F32*S32>20000,20000,F32*S32)) ->  | J32: =IF(A32="","",F32+H32+I32) ->  | S32: =IF(A32="","",$S$29) -> 
I33: =IF(A33="","",IF(F33*S33>20000,20000,F33*S33)) ->  | J33: =IF(A33="","",F33+H33+I33) ->  | S33: =IF(A33="","",$S$29) -> 
A34: Project Sub-Total | F34: =SUM(F29:F33) -> 0 | H34: =SUM(H29:H33) -> 0 | I34: =SUM(I29:I33) -> 0 | J34: 0
A36: Non-Personnel Costs | B36: Period | C36: Description | D36: Lump Sum | E36: Rate | F36: Quantity | G36: Base Cost | H36: Markup (%) | I36: Markup Rate ($) | J36: UNSW Indirect Costs | K36: Total Cost | S36: Markup (%)
F37: =IF(A37="","",C37) ->  | G37: =IF(A37="","",D37) ->  | I37: =IF(G37="","",G37*H37) ->  | J37: =IF(G37="","",S37*G37) ->  | K37: =IF(G37="","",J37+I37+G37) -> 
F38: =IF(A38="","",C38) ->  | G38: =IF(A38="","",D38) ->  | I38: =IF(G38="","",G38*H38) ->  | J38: =IF(G38="","",S38*G38) ->  | K38: =IF(G38="","",J38+I38+G38) ->  | S38: =IF(G38="","",$S$37) -> 
G39: =IF(A39="","",D39) ->  | I39: =IF(G39="","",G39*H39) ->  | S39: =IF(G39="","",$S$37) -> 
A52: Project Sub-Total | G52: =SUM(G37:G51) -> 0 | I52: =SUM(I37:I51) -> 0 | J52: =SUM(J37:J51) -> 0 | K52: 0
A55: BUDGET SUMMARY | C55: =CONCATENATE("Year 1 ","(",YEAR('Project Information'!H4),")") -> Year 1 (2019) | E55: Total (exc) GST
A56: Personnel Costs | C56: Market Price | D56: Minimum Price | E56: Market Price | F56: Minimum Price
A57: UNSW Personnel
A58: =IF(A18="","",A18) ->  | C58: =IF(M18="","",M18) ->  | D58: =IF(M18="","",(M18-K18)) ->  | E58: =C58 ->  | F58: =D58 -> 
C59: =IF(M19="","",M19) ->  | D59: =IF(M19="","",(M19-K19)) ->  | E59: =C59 ->  | F59: =D59 -> 
A66: Non-UNSW Personnel
A67: =IF(A29="","",A29) ->  | C67: =IF(J29="","",J29) ->  | D67: =IF(J29="","",J29-H29) -> 
A68: =IF(A30="","",A30) ->  | C68: =IF(J30="","",J30) ->  | D68: =IF(J30="","",J30-H30) -> 
A69: =IF(A31="","",A31) -> 
A70: =IF(A32="","",A32) -> 
A71: =IF(A33="","",A33) ->  | C71: =IF(J33="","",J33) ->  | E71: =C71 ->  | F71: =D71 -> 
A72: Sub-Total | C72: =SUM(C57:C71) -> 0 | D72: =SUM(D57:D71) -> 0 | E72: 0 | F72: 0
A73: Non-Personnel Costs
A74: =IF(A37="","",A37) ->  | C74: =IF(K37="","",K37) ->  | D74: =IF(K37="","",K37-I37) ->  | E74: =C74 -> 
A75: =IF(A38="","",A38) ->  | C75: =IF(K38="","",K38) ->  | D75: =IF(K38="","",K38-I38) -> 
A89: Sub-Total | C89: =SUM(C74:C88) -> 0 | D89: =SUM(D74:D88) -> 0 | E89: 0 | F89: 0
A91: Total | C91: =C72+C89 -> 0 | D91: =D72+D89 -> 0 | E91: 0 | F91: 0
A92: GST applicable | B92: Sale (10%) | C92: =C91*0.1 -> 0 | D92: =D91*0.1 -> 0 | E92: 0 | F92: 0
A93: Grand Total | C93: =C91+C92 -> 0 | D93: =D91+D92 -> 0 | E93: 0 | F93: 0
A97: FOR INTERNAL USE ONLY:
C98: =CONCATENATE("Year 1 ","(",YEAR(StaffDetails!J1),")") -> Year 1 (2019) | E98: Total
A99: Retained by Researcher (Market Price less Minimum Price) | C99: =C91-D91 -> 0 | E99: =C99 -> 0
A101: UNSW Indirect Costs
A102: UNSW Personnel | C102: =L26 -> 0 | E102: =C102 -> 0
A103: Other | C103: =I34+J52 -> 0 | E103: =C103 -> 0

Sheet Sheet1 (hidden)
